Cogmind - Beta 15 @@@ ROGUE MODE // 2025.09.13 @ 14:41:33 Player: konomiyu Result: Destroyed by S-27 Virus with Autogun Performance ------------- Evolutions (5) 2500 Regions Visited (6) 1200 Robots Destroyed (64) 320 Value Destroyed (2293) 2293 Prototype IDs (4) 80 Alien Tech Used (0) 0 Bonus (834) 834 TOTAL SCORE: 7227 Bonus ------- High Alert Combat Kills 34 Registered with UFD 300 Met Optimus in HQ 500 Cogmind --------- Core Integrity 0/1000 Matter 86/300 Energy 100/100 System Corruption 16% Temperature Cool (0) Movement Core (50) Location -5/Factory Parts ------- > --- POWER (1) -------- (None) > --- PROPULSION (4) --- (None) > --- UTILITY (8) ------ (None) > --- WEAPON (4) ------- (None) > --- INVENTORY (5) ---- Enhanced Nuclear Core Light Angular Momentum Engine Improved Component Analysis Suite Improved Recalibrator Peak State ------------ > --- POWER ------------ Light Fission Core > --- PROPULSION ------- Advanced Treads Overtuned Treads Improved Medium Treads > --- UTILITY ---------- Scrap Suit Advanced Heat Sink Large Storage Unit Structural Scanner Makeshift Salvage Targeting Computer Medium Insulated Plating Hacking Suite > --- WEAPON ----------- Coil Gun Overtuned Coil Gun Overtuned Coil Gun Enhanced Gauss Cannon > --- INVENTORY -------- Light Nuclear Core Light Angular Momentum Engine Neutrino Core Huge Storage Unit Advanced Recoil Stabilizer ECM Suite Point Defense System Improved Recalibrator Enhanced Gauss Cannon Improved Datajack CPS Tube Great Axe [Rating: 70] Favorites ----------- Power Ion Engine Engine Ion Engine Power Core Light Fission Core Propulsion Light Treads Treads Light Treads Leg Aluminum Leg Wheel Wheel Hover Unit Gyrokinetic Inverter Flight Unit Improved Surge Thruster Utility Structural Scanner Device Structural Scanner Storage Large Storage Unit Processor Makeshift Salvage Targeting Computer Hackware Hacking Suite Protection Medium Insulated Plating Weapon Autogun Energy Gun Small Laser Ballistic Gun Autogun Ballistic Cannon Enhanced Gauss Cannon Special Weapon CPS Tube Slashing Weapon Great Axe Special Melee Weapon Datajack Build | -11 -10 -10 -7 -5 -5 -5 ------- Run | Yrd Mat Sub Scr Fac Was Fac Slots Evolved 10 | . . . . 10 . . Power . | . . . . . . . Propulsion 2 | . . . . 2 . . Utility 6 | . . . . 6 . . Weapon 2 | . . . . 2 . . Parts Attached 56 | 5 8 4 5 25 1 8 Power 7 | 1 1 1 . 3 . 1 Engine 4 | 1 1 1 . 1 . . Core 3 | . . . . 2 . 1 Reactor . | . . . . . . . Propulsion 14 | 2 . 2 2 4 . 4 Treads 6 | 2 . 1 2 1 . . Leg 1 | . . 1 . . . . Wheel 3 | . . . . 3 . . Hover 1 | . . . . . . 1 Flight 3 | . . . . . . 3 Utility 17 | . 2 . 2 11 . 2 Device 11 | . 1 . . 8 . 2 Storage 3 | . 1 . 2 . . . Processor 1 | . . . . 1 . . Hackware 1 | . . . . 1 . . Protection 1 | . . . . 1 . . Artifact . | . . . . . . . Weapon 18 | 2 5 1 1 7 1 1 Energy Gun 1 | 1 . . . . . . Energy Cannon . | . . . . . . . Ballistic Gun 10 | 1 4 1 1 3 . . Ballistic Cannon 3 | . . . . 2 . 1 Launcher . | . . . . . . . Special Weapon 1 | . . . . 1 . . Impact Weapon . | . . . . . . . Slashing Weapon 1 | . . . . 1 . . Piercing Weapon . | . . . . . . . Special Melee Weapon 2 | . 1 . . . 1 . Unidentified Prototypes 2 | . . . . . . 2 Parts Lost 29 | . . 4 . 9 9 7 Power 4 | . . 1 . 1 1 1 Propulsion 9 | . . 2 . 2 2 3 Utility 7 | . . . . 3 2 2 Weapon 9 | . . 1 . 3 4 1 Highest Loss Streak 8 | . . 2 . 5 8 6 To Critical Strikes . | . . . . . . . Average Backups 8 | 3 7 6 10 9 6 4 Power 1 | . 1 . . 2 2 2 Propulsion . | 1 2 1 . . . . Utility 3 | . 1 2 4 3 2 1 Weapon 2 | . 1 1 4 1 . . Tool/Special . | . . . . . . . Unused Backups 8 | . 2 . 1 1 2 2 Power 2 | . . . . 1 . 1 Propulsion 1 | . 1 . . . . . Utility 3 | . . . . . 2 1 Weapon 2 | . 1 . 1 . . . Tool/Special . | . . . . . . . Average Slot Usage (%) 75 | . 97 99 71 81 36 10 Engine 10 | . 14 13 14 1 . 2 Treads 21 | . 28 25 26 11 1 . Wheel 1 | . . . . 6 7 . Device 13 | . 12 14 14 17 11 4 Storage 10 | . 14 14 14 5 2 . Processor 1 | . . . . 4 4 . Hackware 1 | . . . . 4 2 . Ballistic Gun 9 | . 24 28 . 11 1 . Peak Build Rating 70 | 5 10 10 19 70 66 26 Average Rating 21 | 3 8 9 12 58 21 10 On Entrance 13 | . 5 10 9 16 52 1 Naked Turns 58 | . . . . . 38 20 Heaviest Build 66 | 7 17 17 26 66 45 11 Greatest Support 70 | 40 40 40 52 70 30 11 Greatest Overweight (x) 2 | . . . . 2 1 2 Average Overweight (x) . | . . . . . . . Largest Inventory Capacity 15 | 5 8 8 15 15 15 5 Average Capacity 10 | 5 8 8 11 15 8 5 Most Carried 15 | 5 8 8 15 14 11 5 Average Carried 8 | 3 7 6 10 9 6 4 Final Capacity 15 | 5 8 8 15 15 5 5 Final Carried 15 | 5 8 4 15 11 4 4 Class Distribution -------------------- 77% | Mutant 8% | Scrapper 8% | Scavenger-Mutant Dominant Class ---------------- Mutant | -10/Materials Mutant | -10/Subcaves Mutant | -7/Scraptown Scrapper | -5/Factory Mutant | -5/Waste Mutant | -5/Factory Resources | -11 -10 -10 -7 -5 -5 -5 ----------- Run | Yrd Mat Sub Scr Fac Was Fac Matter Collected 2517 | 250 456 299 85 1363 7 57 Remotely . | . . . . . . . Salvage Created 2532 | . 532 263 . 1702 . 35 Parts 165 | . 51 16 . 95 . 3 Haulers Intercepted 1 | . 1 . . . . . Recyclers Shooed 3 | . . . . 3 . . Parts Field Recycled . | . . . . . . . Retrieved Matter . | . . . . . . . Parts Self-Destructed 5 | . . 5 . . . . Prevented . | . . . . . . . Kills | -11 -10 -10 -7 -5 -5 -5 ------- Run | Yrd Mat Sub Scr Fac Was Fac Combat Hostiles Destroyed 50 | . 16 8 . 25 . 1 Guns 35 | . 16 8 . 11 . . Cannons 14 | . . . . 14 . . AOE 1 | . . . . . . 1 Classes Destroyed 14 | . 6 1 . 6 . 1 Worker 1 | . . . . 1 . . Builder 5 | . 1 . . 4 . . Hauler 1 | . 1 . . . . . Recycler 2 | . . . . 2 . . Mechanic 1 | . . . . 1 . . Operator 2 | . 2 . . . . . Watcher 2 | . 1 . . 1 . . Swarmer 15 | . 9 2 . 4 . . Cutter 1 | . . . . . . 1 Grunt 17 | . 7 2 . 8 . . Sentry 1 | . . . . 1 . . Hunter 3 | . . . . 3 . . Programmer 9 | . . . . 9 . . Subdweller 4 | . . 4 . . . . Best Kill Streak 6 | . 4 2 . 6 . 1 Combat Bots Only 4 | . 3 2 . 4 . 1 Max Kills in Single Turn 2 | . 1 1 . 2 . 1 Gunslinging . | . . . . . . . Exploded 1 | . . . . . . 1 Melee . | . . . . . . . Uniques/NPCs Destroyed . | . . . . . . . Combat | -11 -10 -10 -7 -5 -5 -5 -------- Run | Yrd Mat Sub Scr Fac Was Fac Hostile Shots Fired 325 | . 56 44 . 180 9 36 Missed 82 | . 14 10 . 49 . 9 Hits 243 | . 42 34 . 131 9 27 Melee 10 | . . . . . 9 1 Projectile 233 | . 42 34 . 131 . 26 Critical Strikes 11 | . . . . 9 2 . Part Disruptions 1 | . . . . 1 . . Damage Taken 4637 | . 443 529 . 2349 370 946 Core 1232 | . 84 144 . 273 242 489 Absorbed by Shields . | . . . . . . . Ignored by Resistances 47 | . . . . 47 . . Regen/Repaired (Parts) 217 | . . . 217 . . . Core Remaining (%) 54 | 100 . . 8 . . . Volleys Fired 161 | . 55 38 . 65 2 1 Largest 4 | . 2 2 . 4 3 1 Hottest 158 | . 60 46 . 158 122 47 Shots Fired 399 | . 110 76 . 206 6 1 Gun 301 | . 110 76 . 113 2 . Cannon 98 | . . . . 93 4 1 Launcher . | . . . . . . . Special . | . . . . . . . Kinetic 395 | . 106 76 . 206 6 1 Thermal 4 | . 4 . . . . . Explosive . | . . . . . . . Electromagnetic . | . . . . . . . Robot Hit Streak 15 | . 10 15 . 8 8 . Robot Miss Streak 8 | . 5 3 . 8 . 1 Penetration Max 2 | . . . . 2 . . Secondary Targets 3 | . 2 1 . . . . Max Gunslinging Chain 1 | . 1 1 . . . . Shots Hit Robots 224 | . 60 52 . 104 8 . Core Hits 103 | . 29 12 . 52 1 9 Critical Kills 4 | . . . . 4 . . Critical Parts Destroyed 5 | . . . . 5 . . Critical Strikes 14 | . . . . 14 . . Destroy 9 | . . . . 9 . . Blast 5 | . . . . 5 . . Melee Attacks 7 | . . . . 1 6 . Impact . | . . . . . . . Slashing 4 | . . . . 1 3 . Piercing . | . . . . . . . Sneak Attacks . | . . . . . . . Combat Hostiles . | . . . . . . . Follow-up Attacks . | . . . . . . . Damage Inflicted 5726 | . 826 603 . 3958 201 138 Guns 3600 | . 826 603 . 2132 39 . Cannons 1969 | . . . . 1826 143 . Explosions 125 | . . . . . . 125 Melee 19 | . . . . . 19 . Ramming 13 | . . . . . . 13 Kinetic 5558 | . 815 603 . 3958 182 . Thermal 11 | . 11 . . . . . Explosive . | . . . . . . . Electromagnetic 125 | . . . . . . 125 Impact . | . . . . . . . Slashing 19 | . . . . . 19 . Piercing . | . . . . . . . Highest Corruption 16 | . . . . 3 16 16 Average Corruption 8 | . . . . 2 9 16 Corruption Purged 3 | . . . . 3 . . Corruption Blocked . | . . . . . . . Effects 33 | . . . . 11 4 18 Message Errors 5 | . . . . 2 1 2 Matter Fused 8 | . . . . 3 1 4 Heat Flow Errors 5 | . . . . 1 1 3 Energy Discharges 9 | . . . . 2 . 7 Data Loss (minor) 4 | . . . . 3 . 1 Misdirections 2 | . . . . . 1 1 Overload Shots . | . . . . . . . Overflow Damage 65 | . . . . 65 . . Projectiles 65 | . . . . 65 . . Explosions . | . . . . . . . Melee . | . . . . . . . Knockbacks 13 | . . . . 13 . . Impact . | . . . . . . . Kinetic 10 | . . . . 10 . . Secondary 3 | . . . . 3 . . Self-Inflicted Damage 110 | . . . . . . 110 Shots 3 | . . . . . . 3 Rammed 7 | . . . . . 1 6 Targets Rammed 7 | . . . . . 1 6 Kicked . | . . . . . . . Crushed . | . . . . . . . Highest Temperature 453 | . 24 . . 453 83 249 Average Temperature 82 | . 7 . . 105 43 108 Received Heat Transfer 659 | . 159 144 . 311 . 45 Effects 3 | . . . . 3 . . Shutdowns 1 | . . . . 1 . . Matter Decay 1 | . . . . 1 . . Short Circuit 1 | . . . . 1 . . Siege Activations . | . . . . . . . Martial Activations . | . . . . . . . Shielding Activations . | . . . . . . . Robots Disrupted 1 | . . . . . . 1 Combat Hostiles 1 | . . . . . . 1 Robots Corrupted . | . . . . . . . Combat Hostiles . | . . . . . . . Parts Fried . | . . . . . . . Impact Corruptions . | . . . . . . . Robots Melted . | . . . . . . . Combat Hostiles . | . . . . . . . Parts Melted . | . . . . . . . Heat Transferred 25 | . 25 . . . . . Parts Sabotaged . | . . . . . . . Parts Stolen . | . . . . . . . Parts Stripped . | . . . . . . . Power Chain Reactions . | . . . . . . . Alert | -11 -10 -10 -7 -5 -5 -5 ------- Run | Yrd Mat Sub Scr Fac Was Fac Maximum Alert Level 2 | . 1 . . 2 . . Low Security (%) 83 | 100 96 . . 66 100 100 Level 1 14 | . 3 . . 29 . . Level 2 1 | . . . . 4 . . Level 3 . | . . . . . . . Level 4 . | . . . . . . . Level 5 . | . . . . . . . High Security . | . . . . . . . Max Security . | . . . . . . . Peak Influence 409 | . 212 . . 409 142 52 Initial 142 | . . . . . 142 . Average 108 | . 84 . . 167 55 6 Influence Increases 1650 | . 461 90 . 937 . 162 Destroy 0b10 Robot/C 920 | . 320 80 . 500 . 20 Destroy 0b10 Robot/NC 70 | . 25 . . 45 . . Destroy Leader 206 | . 64 10 . 132 . . Successful Hack 24 | . 6 . . 13 . 5 Disable Machine 135 | . . . . 75 . 60 Destroy Structure 175 | . 1 . . 172 . 2 Lose Combat Pursuer 120 | . 45 . . . . 75 Influence Decreases 1621 | . 326 225 . 531 406 133 Entered New Map 330 | . . 66 . . 264 . Time Decay 1053 | . 326 139 . 473 52 63 Lost Part 238 | . . 20 . 58 90 70 Squads Dispatched 14 | . 2 . . 9 . 3 Investigation . | . . . . . . . Extermination 4 | . . . . 3 . 1 Reinforcement 7 | . 2 . . 3 . 2 Assault . | . . . . . . . Garrison 3 | . . . . 3 . . Intercept . | . . . . . . . Searches Triggered . | . . . . . . . Construction Impeded 2 | . . . . 2 . . Haulers Reinforced 1 | . . . . 1 . . Active Scanning Responses . | . . . . . . . Cargo Convoy Interrupts . | . . . . . . . Stealth | -11 -10 -10 -7 -5 -5 -5 --------- Run | Yrd Mat Sub Scr Fac Was Fac Distress Signals 4 | . 3 . . 1 . . Communications Jammed . | . . . . . . . Distress Signals . | . . . . . . . Times Spotted 96 | . 27 9 . 37 6 17 Peak Tracking Total 9 | . 6 2 . 5 6 9 Tactical Retreats 13 | . 2 . . 4 . 7 Traps | -11 -10 -10 -7 -5 -5 -5 ------- Run | Yrd Mat Sub Scr Fac Was Fac Traps Triggered 3 | . . . . 1 . 2 Indirectly . | . . . . . . . Trap Hack Attempts 41 | . 41 . . . . . Triggered . | . . . . . . . Disarmed . | . . . . . . . Reprogrammed 3 | . 3 . . . . . Reused . | . . . . . . . Traps Extracted . | . . . . . . . Installed . | . . . . . . . Triggered . | . . . . . . . Machines | -11 -10 -10 -7 -5 -5 -5 ---------- Run | Yrd Mat Sub Scr Fac Was Fac Machines Disabled 9 | . . . . 5 . 4 Max in Single Turn 2 | . . . . 1 . 2 Garrison Access 1 | . . . . . . 1 Machines Repaired . | . . . . . . . Machines Dismantled . | . . . . . . . Machines Sabotaged . | . . . . . . . Overloaded Fab Kills . | . . . . . . . Hacking | -11 -10 -10 -7 -5 -5 -5 --------- Run | Yrd Mat Sub Scr Fac Was Fac Machines Accessed 26 | . 6 . 9 5 . 6 Terminals 12 | . 5 . . 4 . 3 Fabricators 3 | . . . . 1 . 2 Repair Stations . | . . . . . . . Recycling Units 1 | . 1 . . . . . Scanalyzers . | . . . . . . . Garrison Access 1 | . . . . . . 1 Total Hacks 112 | . 13 . 72 14 . 13 Successful 82 | . 3 . 72 5 . 2 Failed 30 | . 10 . . 9 . 11 Catastrophic 6 | . 2 . . 1 . 3 Database Lockouts . | . . . . . . . Manual 26 | . 9 . 3 6 . 8 Terminals 30 | . 12 . . 12 . 6 Fabricators 7 | . . . . 2 . 5 Repair Stations . | . . . . . . . Recycling Units 1 | . 1 . . . . . Scanalyzers . | . . . . . . . Garrison Access 2 | . . . . . . 2 Terminal Hacks 76 | . 1 . 72 2 . 1 Record 74 | . . . 72 2 . . Prototype ID Bank 1 | . 1 . . . . . Open DSF 1 | . . . . . . 1 Fabricator Hacks 1 | . . . . 1 . . Network Status 1 | . . . . 1 . . Repair Station Hacks . | . . . . . . . Recycling Unit Hacks . | . . . . . . . Scanalyzer . | . . . . . . . Garrison Access Hacks 1 | . . . . . . 1 Seal Access 1 | . . . . . . 1 Unauthorized Hacks 4 | . 2 . . 2 . . Terminals 2 | . 1 . . 1 . . Operators 2 | . 1 . . 1 . . Fabricators 1 | . . . . 1 . . Report 1 | . . . . 1 . . Repair Stations . | . . . . . . . Recycling Units 1 | . 1 . . . . . Monitor 1 | . 1 . . . . . Scanalyzers . | . . . . . . . Garrison Access . | . . . . . . . Data Cores Recovered . | . . . . . . . Used . | . . . . . . . Hacking Detections 14 | . 5 . . 5 . 4 Full Trace Events . | . . . . . . . Feedback Events . | . . . . . . . Feedback Blocked . | . . . . . . . Robot Schematics Acquired . | . . . . . . . Robots Built . | . . . . . . . Authchips . | . . . . . . . Time . | . . . . . . . Total Robot Build Rating . | . . . . . . . Part Schematics Acquired . | . . . . . . . Parts Built . | . . . . . . . Authchips . | . . . . . . . Time . | . . . . . . . Total Part Build Rating . | . . . . . . . Parts Repaired . | . . . . . . . Time . | . . . . . . . Parts Recycled . | . . . . . . . Recycled Matter . | . . . . . . . Retrieved Matter . | . . . . . . . Retrieved Components . | . . . . . . . Parts Scanalyzed . | . . . . . . . Part Schematics Acquired . | . . . . . . . Parts Damaged . | . . . . . . . Bothacking | -11 -10 -10 -7 -5 -5 -5 ------------ Run | Yrd Mat Sub Scr Fac Was Fac Used RIF Installer . | . . . . . . . Robots Hacked 1 | . . . . . 1 . Non-combat . | . . . . . . . Combat 1 | . . . . . 1 . Robot Hacks Applied 1 | . . . . . 1 . parse_system 1 | . . . . . 1 . Relay Couplers Released . | . . . . . . . Fabnet Peak Effective % . | . . . . . . . Robots Rewired . | . . . . . . . Allies Hacked . | . . . . . . . Hacks Repelled . | . . . . . . . Allies | -11 -10 -10 -7 -5 -5 -5 -------- Run | Yrd Mat Sub Scr Fac Was Fac Total Allies . | . . . . . . . Largest Group . | . . . . . . . Highest-Rated Group . | . . . . . . . Highest-Rated Ally . | . . . . . . . Total Orders . | . . . . . . . Ally Attacks . | . . . . . . . Total Damage . | . . . . . . . Kills . | . . . . . . . Allies Corrupted . | . . . . . . . Allies Melted 1 | . . . 1 . . . Intel | -11 -10 -10 -7 -5 -5 -5 ------- Run | Yrd Mat Sub Scr Fac Was Fac Active Infowar (turns) 6826 | . 1029 722 3243 1569 53 210 Structural 5980 | . 1029 722 3243 980 6 . ECM 983 | . . . . 726 47 210 Robot Analysis Total . | . . . . . . . Derelict Logs Recovered . | . . . . . . . Drone Launches . | . . . . . . . Drone Recoveries . | . . . . . . . Exploration | -11 -10 -10 -7 -5 -5 -5 ------------- Run | Yrd Mat Sub Scr Fac Was Fac Turns Passed 7530 | 99 1190 722 3243 1638 146 492 Spaces Moved 4533 | 55 543 379 2068 613 143 732 Core 484 | 3 . . . . 77 404 Treads 3668 | 52 543 379 2068 613 13 . Legs . | . . . . . . . Wheels 53 | . . . . . 53 . Hover 304 | . . . . . . 304 Flight 24 | . . . . . . 24 Fastest Speed 50 | 50 160 160 152 148 50 50 Average Speed 145 | 154 160 160 155 212 78 59 Slowest Speed 320 | 160 160 160 160 320 240 150 Overloaded Moves 24 | . . . . . . 24 Propulsion Burnouts . | . . . . . . . Robots Hopped . | . . . . . . . Potential Cave-ins . | . . . . . . . Cave-ins Triggered . | . . . . . . . Exploration Rate (%) 49 | 5 95 27 96 18 87 16 Regions Visited 6 Branch Regions 2 Pre-discovered Areas . | . . . . . . . Known Exits Taken . | . . . . . . . Unknown Exits Taken 4 | 1 1 1 1 . . . Scrap Searched 3 | . . . 3 . . . Spaces Dug 4 | . . . . 4 . . Terrain Destroyed 102 | . . . . 102 . . Melee 1 | . . . . 1 . . Projectile 101 | . . . . 101 . . AOE . | . . . . . . . Terrain Rammed . | . . . . . . . Walls Destroyed . | . . . . . . . Machines Disabled . | . . . . . . . Actions | -11 -10 -10 -7 -5 -5 -5 --------- Run | Yrd Mat Sub Scr Fac Was Fac Total 5174 | 69 763 434 2107 847 163 791 Wait 252 | . 98 14 7 97 6 30 Move 4528 | 54 542 378 2067 613 142 732 Hop . | . . . . . . . Pick Up 53 | 10 9 . 12 16 . 6 Fast Attach 4 | . . . . . 1 3 Attach 57 | 5 2 4 1 32 5 8 Detach 21 | . . . 3 15 . 3 Swap 20 | . 9 . 5 6 . . Drop 18 | . 7 . 7 2 . 2 Fire 161 | . 55 38 . 65 2 1 Melee 7 | . . . . 1 6 . Ram 7 | . . . . . 1 6 Kick . | . . . . . . . Crush . | . . . . . . . Escape Stasis . | . . . . . . . Rewire 5 | . . . 5 . . . Trap 41 | . 41 . . . . . Miscellaneous . | . . . . . . . Route ------- -11/Scrapyard -10/Materials (discovered 6 exits: [*Mat x3] / [*Min x2] / [*Sub]) -10/Subcaves -7/Scraptown (discovered 2 exits: *Fac x2) -5/Factory -5/Waste -5/Factory History --------- Turn | Location | Event 8 | -11/Scrapyard | Discovered new exit (range 15) 100 | -11/Scrapyard | Entered Materials 224 | -10/Materials | Discovered new exit (range 16) 305 | -10/Materials | Build established: Mutant 706 | -10/Materials | Discovered new exit (range 14) 808 | -10/Materials | Discovered new exit (range 7) 933 | -10/Materials | Discovered new exit (range 4) 1102 | -10/Materials | Discovered new exit (range 9) 1179 | -10/Materials | Discovered new exit (range 16) 1290 | -10/Materials | Entered Subcaves 1291 | -10/Subcaves | Approached by a straggling Scientist 1308 | -10/Subcaves | Ambushed by Subdwellers from Twisted Machinery 1513 | -10/Subcaves | Shifting Twisted Machinery released Sub. Beam Cannon 1513 | -10/Subcaves | Shifting Twisted Machinery released Riot Gun 1619 | -10/Subcaves | Core integrity fell below 50% 1865 | -10/Subcaves | Core integrity fell below 20% 1995 | -10/Subcaves | Scientist uncovered a shortcut to Scraptown 2012 | -10/Subcaves | Entered Scraptown 2319 | -7/Scraptown | Heard Great Nut preacher, LISTEN AND RECITE! 2923 | -7/Scraptown | Discovered new exit (range 5) 3118 | -7/Scraptown | Visited Cyclists 3184 | -7/Scraptown | Visited Spacefarers 3281 | -7/Scraptown | Visited CR-KLE's Repair Center 3292 | -7/Scraptown | CR-KLE repaired 4 parts 3318 | -7/Scraptown | Visited Junk Repository 3396 | -7/Scraptown | Visited UFD Registry 3407 | -7/Scraptown | Visited SPCMW 3481 | -7/Scraptown | Visited Cave Peace 3545 | -7/Scraptown | Visited Fellowship of the Rings 3675 | -7/Scraptown | Registered with UFD as "Scrapshell" 3808 | -7/Scraptown | Entered Cyclist Reading Room 3950 | -7/Scraptown | Visited Modified Component R&D 4075 | -7/Scraptown | Visited Chapter 10 4139 | -7/Scraptown | Visited Scrapoid Research Area 4306 | -7/Scraptown | Discovered new exit (range 3) 4389 | -7/Scraptown | Visited Junk Repository 4424 | -7/Scraptown | Visited Supply Room 4497 | -7/Scraptown | Found Scrap Suit 4603 | -7/Scraptown | Visited Curators Association 4869 | -7/Scraptown | Visited Research Penetration Think Tank 4902 | -7/Scraptown | Visited Science Testing Area 4931 | -7/Scraptown | Visited LU-1G1's Boring Crew 5072 | -7/Scraptown | Met Optimus 5072 | -7/Scraptown | Accepted into 0bPrime 5220 | -7/Scraptown | Civil war broke out across Scraptown 5255 | -7/Scraptown | Entered Factory 5255 | -5/Factory | Evolved 10 slots: Propulsion x2, Utility x6, Weapon x2 6012 | -5/Factory | Build established: Scrapper 6234 | -5/Factory | Lost 5 parts (2n1u2w) 6420 | -5/Factory | Garrison activated, responded to threat 6765 | -5/Factory | Build established: Scavenger-Mutant 6893 | -5/Factory | Sucked down chute 6893 | -5/Factory | Entered Waste 6908 | -5/Waste | EMP discharged 6913 | -5/Waste | Spotted C-40 Crusher 6927 | -5/Waste | Spotted C-40 Crusher 6932 | -5/Waste | Spotted C-40 Crusher 6934 | -5/Waste | Crushed by Compactor (1 part destroyed, 2 dropped) 6937 | -5/Waste | Crushed by Compactor (1 part destroyed, 2 dropped) 6940 | -5/Waste | Crushed by Compactor (1 part destroyed, 1 dropped) 6943 | -5/Waste | Crushed by Compactor (1 part destroyed, 1 dropped) 6946 | -5/Waste | Crushed by Compactor (1 part destroyed, 2 dropped) 6949 | -5/Waste | Crushed by Compactor (1 part destroyed, 1 dropped) 6980 | -5/Waste | Lost 8 parts (1p1n2u4w) 6982 | -5/Waste | Spotted C-40 Crusher 7001 | -5/Waste | Crushed by Compactor (1 part destroyed, 2 dropped) 7003 | -5/Waste | Spotted C-40 Crusher 7006 | -5/Waste | Spotted C-40 Crusher 7008 | -5/Waste | EMP discharged 7008 | -5/Waste | System corruption reached 10% 7013 | -5/Waste | Core integrity fell below 50% 7032 | -5/Waste | Discovered new exit (range 14) 7039 | -5/Waste | Entered Factory 7238 | -5/Factory | Build established: Mutant 7512 | -5/Factory | Core integrity fell below 20% 7531 | -5/Factory | Destroyed by S-27 Virus with Autogun Last Messages --------------- 07505_ Neutrino Reactor explodes. 07505_ Door malfunctions. 07505_ H-71 Marshal calls for reinforcements. 07505_ ALERT: Hostile activity reported, dispatching reinforcements to area. 07505_ Penetrated by Slug. 07506_ K-01 Serf collects debris. 07506_ Acquired 40 matter. 07507_ Neutrino Reactor explodes. 07507_ Door malfunctions. 07508_ K-01 Serf collects debris. 07513_ Slug penetrates Wall. 07517_ System corrupted: Energy discharge (-34). 07523_ Enh. Gauss Cannon destroyed. 07523_ Slammed into S-27 Virus. 07527_ Imp. Surge Thruster destroyed. 07529_ Lgt. Angular Momentum Engine destroyed. 07529_ Slammed into Y-64 Sentinel. 07530_ Penetrated by Slug. 07531_ Slammed into Y-64 Sentinel. Map ----- +----------------------------------------------------+ | | | | | | | | | | | ?????????????????????????????????????????????????? | | ?????????????????????????????????????????????????? | | ?????????????????????????????????????????????????? | | ?????????????????????????????????????????????????? | | ?????????????????????????????????????????????????? | | ?????????????????????????????????????????????????? | | ????????????????????????????????????#######?##???? | | ????????????????????????????????????# ? ##### | | ????????????????????????????????????# # | | ????????????????????????###########?# """ # | | ????????????????????????# #?# """ # | | ????????????????????????# [ #?# """ # | | ????????????????????????# #?# "" # | | ????????????????????????#"""" #?# "" # | | ????????????????????????#"""" #?# # | | ????????????????????????#"""" #?# # | | ???????????????####+#???#"""" #?#######+###### | | ???????????#+### ??# s #????# | | ????????? ##s#######/###### | | ????????? s s | | ????????? @ ###### % | | ????????? ! Y #????# | | ?????????? #### #????# ######"/#+##### | | ??????????##+### ???? #????# ## [ # | | ???????????????### #?????+#????# ## # | | ?????????????????# ????????????# ## # | | ?????????????????# ?????????????# ## % # | | ?????????????????# ??????????????# ## # | | ?????????????????# ??????????????# ?# !/ # | | ?????????????????#???????????????? ?# = # | | ?????????????????????????????????? ?# = !* # | | ?????????????????????????????????? ?# %# | | ????????????????????????????????? / # | | ????????????????????????????????# # H # | | ????????????????????????????????##### # | | ????????????????????????????????????####"" ###/### | | ?????????????????????????????????????? ??# #?? | | ????????????????????????????????????? ??# ### | | ??????????????????????????????????? ??# # | | ???????????????????????????????? ### # | | ??????????????????????????????????##"# + | | ???????????????????????????????????#### # " | | ??????????????????????????????????????# # " | | ??????????????????????????????????????# # " | | ??????????????????????????????????????# + | +----------------------------------------------------+ Best States ------------- Heat Dissipation 59 Energy Generation 19 Energy Capacity 315 Matter Stores 300 Matter Capacity 300 Sight Range 16 Terrain Scan Density 10 ECM Strength 1 Armor Coverage 225 Resistance: KI 25 Resistance: EM 20 Point Defense Rating 80 Evasion (%) 51 Recoil Reduction 7 Salvage Targeting 4 Offensive Hacking 10 Item Schematics ----------------- None Robot Schematics ------------------ None Fabricated ------------ Nothing Repaired ---------- Nothing Alien Tech Used ----------------- None Achievements -------------- None Challenges ------------ None Game ------ Seed FlightTransdimensionalMace Manual? 0 Play Time 01:43:52 Cumulative 21.0 hours Start 2025.09.13 @ 12:36:26 End 2025.09.13 @ 14:41:33 Sessions 1 Manual Loads 0 Difficulty Rogue Special Mode None Game No. 25 Rogue 25 Adventurer 0 Explorer 0 Win Type - Total 0 Types 0/0/0/0/0/0/0/0/0/0 Lore% 22 Gallery% 18 Achievement% 20 Wizard Run 0 Options --------- Layout 1 ASCII 0 Keyboard 0 Movement Mouse Keybinds 0 Fullscreen 2 Font 24/Smallcaps Map View 50x35 Zoom Use 0% Tactical HUD 1 Map Filters NONE Filters NONE Steam 1 RUN: 8ba90290-b5c0-4cb8-8752-b11d6eda1d0d